bitfinex/quotes_ETHUSD_20241223
["timestamp","ask_amount","ask_price","bid_price","bid_amount"]
[1734961242847,3.0186,3312.8,3312.4,0.05142262]
[1734961243040,3.0186,3312.8,3312.3,0.050009]
[1734961243231,3.0186,3312.8,3312.5,0.05140218]
[1734961243428,3.01877,3312.6,3312.3,0.050009]
[1734961243633,3.01888,3312.5,3312.3,0.050009]
[1734961244401,3.0185,3312.9,3312.3,0.050009]
[1734961244602,1.122544,3313.0,3312.4,0.05142262]
[1734961244802,1.122544,3313.0,3312.3,0.050009]
[1734961244803,3.01868,3312.7,3312.3,0.050009]
[1734961245097,3.01895,3312.4,3312.3,0.050009]
[1734961245696,3.81605,3312.4,3312.3,0.050009]
[1734961246145,4.63795,3312.4,3312.3,0.050009]
[1734961246324,7.63795,3312.4,3312.3,9e-06]
[1734961246911,7.63795,3312.4,3311.9,0.169841]
[1734961247103,9.95281295,3312.0,3311.9,1e-05]
[1734961247509,6.84402,3312.0,3311.9,1e-05]
[1734961248548,3.01932,3312.0,3311.9,1e-05]
[1734961249660,4.09378429,3312.3,3311.9,1e-05]
[1734961249809,0.7971,3312.4,3311.9,1e-05]
[1734961250321,0.7971,3312.4,3312.0,0.0492763]
[1734961250715,0.7971,3312.4,3311.9,1e-05]
[1734961250945,0.7971,3312.4,3312.1,0.04925584]
[1734961251257,0.7971,3312.4,3311.9,1e-05]
[1734961251258,3.01905,3312.3,3312.0,0.0492763]
[1734961251447,3.0192,3312.2,3311.9,1e-05]
[1734961251651,3.01932,3312.0,3311.9,1e-05]
[1734961251946,3.01917,3312.2,3311.9,1e-05]
[1734961252129,0.7971,3312.4,3311.9,1e-05]
[1734961252446,3.01932,3312.0,3311.9,1e-05]
[1734961253144,0.7971,3312.4,3311.9,1e-05]
[1734961253450,3.81607,3312.4,3311.9,1e-05]
[1734961253951,3.81607,3312.4,3312.0,0.0492763]
[1734961254926,3.01923,3312.1,3312.0,0.0492763]
[1734961255344,0.381607,3312.3,3311.9,1e-05]
[1734961255643,3.01923,3312.1,3311.9,1e-05]
[1734961255841,3.01908,3312.3,3311.9,1e-05]
[1734961256273,3.01908,3312.3,3312.0,0.0492763]
[1734961256660,3.01923,3312.1,3312.0,0.0492763]
[1734961256830,3.321153,3312.1,3312.0,0.0492763]
[1734961257033,3.01923,3312.1,3311.9,1e-05]
[1734961257260,3.01928,3312.1,3311.9,1e-05]
[1734961257570,0.7971,3312.4,3311.9,1e-05]
[1734961257571,3.01908,3312.3,3311.9,1e-05]
[1734961257772,3.01918,3312.2,3311.9,1e-05]
[1734961258774,0.7971,3312.4,3312.0,0.8272]
[1734961258993,3.01932,3312.0,3311.9,1e-05]
[1734961259589,6.01932,3312.0,3311.9,1e-05]
[1734961259750,6.80392,3312.0,3311.9,1e-05]
[1734961260991,7.39726258,3312.0,3311.9,1e-05]
[1734961261549,6.66127171,3310.9,3310.8,0.09311311]
[1734961261773,9.66127171,3310.9,3310.8,3.11e-06]
[1734961265303,6.66127171,3310.9,3310.8,3.11e-06]
[1734961265667,7.64475658,3310.9,3310.8,3.11e-06]
[1734961265874,5.38891224,3310.9,3310.2,0.8012]
[1734961266073,5.38891224,3310.9,3310.8,0.04725272]
[1734961266269,0.98348487,3310.9,3309.6,3.02142]
[1734961266501,0.98348487,3310.8,3310.0,3.02105]
[1734961266816,0.98348487,3310.8,3309.7,3.02142]
[1734961267020,3.02008,3311.2,3310.0,3.02112]
[1734961267180,3.02008,3311.2,3310.2,3.02093]
[1734961267386,3.61265171,3311.7,3310.3,0.03020431]
[1734961267680,3.77077,3312.0,3310.3,1.90943582]
[1734961268125,3.01995,3311.4,3310.3,1.90943582]
[1734961268293,3.01995,3311.4,3310.4,0.89501303]
[1734961268494,0.7514,3312.0,3310.4,1.90943582]
[1734961268694,3.01976,3311.6,3310.4,1.90943582]
[1734961268908,3.01989,3311.4,3310.4,1.90943582]
[1734961269094,3.01989,3311.4,3310.4,0.3753]
[1734961269730,3.7514,3312.0,3310.4,0.3753]
[1734961269929,0.66126517,3311.9,3310.5,0.3753]
[1734961270113,3.02003,3311.3,3310.5,0.3753]
[1734961270627,3.68070517,3311.9,3310.9,0.3753]
[1734961270836,0.66126517,3311.9,3310.9,0.3753]
[1734961271186,1.5387874,3312.9,3311.8,0.3753]
[1734961271187,4.5573174,3312.9,3311.8,0.3753]
[1734961271521,0.3301844,3312.9,3312.0,3.01926]
[1734961271832,3.3487044,3312.9,3311.8,3.39479]
[1734961272137,0.3301844,3312.9,3311.9,0.04702766]
[1734961272286,3.01813,3313.4,3312.3,3.01898]
[1734961272482,3.01815,3313.3,3312.3,3.01898]
[1734961272682,0.7867,3313.5,3312.4,0.07711282]
[1734961272952,1.84544607,3313.6,3312.9,3.01848]
[1734961273095,1.84544607,3313.6,3313.0,3.0184]
[1734961273432,1.84544607,3313.6,3313.0,0.04680275]
[1734961273727,3.0175,3314.0,3313.1,0.3753]
[1734961273891,0.30175,3313.9,3313.1,0.42208231]
[1734961274089,3.31937,3313.9,3313.1,0.42208231]
[1734961274289,0.30175,3313.9,3313.1,0.42208231]
[1734961274640,3.67005171,3314.4,3313.2,3.01819]
[1734961274796,3.01725,3314.3,3313.2,3.01819]
[1734961274991,3.01725,3314.3,3312.3,3.0]
[1734961274992,1.84544607,3314.5,3313.3,0.42204143]
[1734961275198,3.01725,3314.3,3313.3,0.42204143]
[1734961275399,3.01725,3314.3,3313.3,0.3753]
[1734961275736,0.301725,3314.2,3313.3,0.3753]
[1734961275919,3.01679,3314.8,3313.7,0.3753]
[1734961276092,3.0166,3315.0,3313.7,0.3753]
[1734961276293,5.87767171,3315.2,3313.9,3.01757]
[1734961276540,3.01661,3315.0,3313.9,3.01757]
[1734961276740,0.8092,3314.8,3314.0,0.04467135]
[1734961276949,0.8092,3314.1,3312.6,0.3753]
[1734961277096,3.01759,3313.9,3312.6,0.3753]
[1734961277295,3.01768,3313.8,3312.6,0.3753]
[1734961277530,3.01845,3313.0,3312.6,0.3753]
[1734961277711,0.301845,3313.0,3312.2,3.01913]
[1734961277895,3.01823,3313.2,3312.7,0.03657442]
[1734961278244,3.01823,3313.2,3312.0,3.39461]
[1734961278245,2.86125171,3313.9,3312.1,3.01923]
[1734961278399,3.01808,3313.4,3312.8,0.03655397]
[1734961278733,3.01808,3313.4,3312.2,3.01908]
[1734961278920,3.01808,3313.4,3312.9,0.03653353]
[1734961279107,0.301808,3313.3,3312.0,0.3753]
[1734961279444,0.8092,3314.1,3313.0,0.03651309]
[1734961279748,0.8092,3314.1,3313.1,0.03649265]
[1734961279943,3.01772,3313.8,3313.1,0.03649265]
[1734961280110,2.65464607,3314.5,3312.6,0.3753]
[1734961280436,3.01703,3314.6,3313.5,3.39324]
[1734961280741,0.301703,3314.5,3313.6,3.05466142]
[1734961280943,4.86221607,3314.8,3313.7,3.01773]
[1734961281148,1.84544607,3314.8,3313.9,0.3753]
[1734961281328,0.301661,3314.9,3314.2,3.0173]
[1734961281531,0.301661,3314.9,3314.0,0.03632733]
[1734961281836,3.01653,3315.1,3314.3,0.03624748]
[1734961282007,1.84544607,3315.5,3313.9,0.3753]
[1734961282215,1.84544607,3315.5,3314.5,0.3753]
[1734961282411,7.3253301,3316.1,3314.5,0.3753]
[1734961282412,3.01567,3316.1,3314.8,0.3753]
[1734961282608,2.62394607,3316.2,3314.8,0.3753]
[1734961282609,3.82607301,3316.0,3314.8,0.40546091]
[1734961282796,3.01577,3315.9,3314.9,0.03565471]
[1734961282998,3.01594,3315.8,3314.8,0.3753]
[1734961283296,0.81038301,3316.0,3315.1,3.01649]
[1734961283638,3.01556,3316.2,3315.2,0.3753]
[1734961283823,3.01556,3316.2,3315.2,0.41089346]
[1734961284137,3.01542,3316.3,3315.2,3.3917]
[1734961284320,3.01522,3316.6,3315.3,3.05188305]
[1734961284525,0.379372,3316.5,3315.4,3.01613]
[1734961284698,1.207076,3317.0,3315.9,0.3753]
[1734961284895,3.01497,3316.8,3315.9,0.3753]
[1734961285098,3.01498,3316.8,3315.9,0.3753]
[1734961285317,1.84544607,3317.6,3315.9,3.391]
[1734961285643,1.84544607,3317.6,3316.0,0.0354302]
[1734961285644,3.01497,3316.8,3316.0,0.0354302]
[1734961286140,0.26239461,3317.5,3316.0,0.0354302]
[1734961286141,3.01468,3317.1,3316.0,0.0354302]
[1734961286348,3.27678461,3317.5,3316.0,3.0510902]
[1734961286534,3.0144,3317.4,3316.0,3.0510902]
[1734961286738,3.01477,3317.0,3316.0,0.0354302]
[1734961286951,3.64369846,3317.3,3316.0,3.01567]
[1734961287255,0.62911846,3317.3,3316.1,0.03396263]
[1734961287558,0.58909529,3318.2,3316.5,0.3753]
[1734961287559,0.7785,3318.2,3316.5,0.3753]
[1734961287711,3.01404,3317.9,3316.6,3.0151]
[1734961287917,3.01404,3317.9,3316.6,0.03386064]
[1734961288232,3.01404,3317.9,3316.8,3.01492]
[1734961288428,0.301404,3317.8,3316.7,0.3753]
[1734961288763,3.01353,3318.4,3317.1,3.01466]
[1734961288982,3.01353,3318.4,3317.2,0.3753]
[1734961289278,3.01341,3318.5,3317.2,3.42353829]
[1734961289481,3.01361,3318.3,3317.2,3.3898]
[1734961289644,3.01295,3319.0,3317.3,0.0337179]
[1734961289848,3.01367,3318.3,3317.4,0.3753]
[1734961290192,0.301295,3318.9,3317.5,0.03367713]
[1734961290193,3.01422,3317.6,3317.5,0.03367713]
[1734961290782,3.01451,3317.3,3316.5,0.3753]
[1734961290990,3.01485,3317.0,3316.5,0.3753]
[1734961291166,3.01535,3316.4,3316.0,0.3753]
[1734961291334,3.01513,3316.7,3316.0,0.3753]
[1734961291676,3.01551,3316.2,3316.1,0.03289403]
[1734961292077,3.01565,3316.1,3315.6,0.3753]
[1734961292378,0.301565,3316.0,3315.6,0.3753]
[1734961292793,0.301565,3316.0,3314.5,3.10773811]
[1734961292794,3.01563,3316.1,3315.7,0.03147351]
[1734961292991,3.01586,3315.8,3315.2,0.3753]
[1734961293149,0.8217,3316.3,3315.2,0.3753]
[1734961293494,3.10773811,3317.5,3315.3,0.03155514]
[1734961293495,3.0155,3316.2,3315.3,0.03155514]
[1734961293658,3.8176,3317.0,3315.3,0.03155514]
[1734961293860,6.12165811,3318.0,3315.6,3.016]
[1734961293861,3.01505,3316.7,3315.6,3.016]
[1734961294077,3.01505,3316.7,3315.7,0.3753]
[1734961294299,3.01485,3317.0,3315.7,3.42345503]
[1734961294595,3.0149,3316.9,3315.7,3.42345503]
[1734961294893,0.8176,3317.4,3315.9,3.01574]
[1734961294894,0.30149,3316.8,3315.9,3.01574]
[1734961295206,0.30149,3316.8,3315.8,0.3753]
[1734961295207,0.8013,3317.8,3316.0,0.3753]
[1734961295368,0.8013,3317.4,3316.0,7.28e-06]
[1734961295564,0.35150504,3318.1,3315.1,0.3753]
[1734961295565,3.0164,3315.2,3315.1,0.3753]
[1734961295763,3.01568,3316.0,3315.1,0.3753]
[1734961296286,3.01534,3316.4,3315.1,0.3753]
[1734961296593,3.01538,3316.4,3315.2,0.02846945]
[1734961296764,3.01576,3316.0,3315.2,0.02846945]
[1734961297159,3.01561,3316.1,3315.3,0.3753]
[1734961297363,0.301538,3316.3,3315.3,0.40374904]
[1734961297564,3.01594,3315.8,3315.3,0.40374904]
[1734961297969,3.01567,3316.1,3315.3,0.40374904]
[1734961298295,3.01567,3316.1,3315.3,0.3753]
[1734961298493,3.01542,3316.3,3315.4,0.02842863]
[1734961298854,3.01495,3316.8,3315.5,0.3753]
[1734961299159,3.01513,3316.6,3315.5,0.3753]
[1734961299357,3.01604,3315.6,3315.5,0.3753]
[1734961299550,3.01604,3315.6,3314.5,3.0]
[1734961299897,3.01583,3315.9,3314.6,0.3753]
[1734961300064,3.01635,3315.3,3314.6,0.40389195]
[1734961300264,3.0154,3316.4,3314.7,0.3753]
[1734961300496,3.01567,3316.1,3314.9,0.3753]
[1734961300997,3.01567,3316.1,3315.1,0.3753]
[1734961301357,3.01567,3316.1,3315.2,0.02846945]
[1734961301558,3.0158,3315.9,3315.2,0.02846945]
[1734961301800,3.01594,3315.8,3315.2,0.02846945]
[1734961301955,0.301594,3315.7,3315.2,0.02846945]
[1734961302698,3.01631,3315.3,3315.2,0.02846945]
[1734961302906,3.01677,3314.8,3313.5,0.3753]
[1734961303070,3.01718,3314.4,3313.5,0.3753]
[1734961303270,0.301718,3314.4,3313.5,0.3753]
[1734961303454,3.01659,3315.0,3313.7,0.3753]
[1734961303654,0.8104,3315.1,3313.7,0.3753]
[1734961304279,3.01679,3314.8,3313.7,0.3753]
[1734961305006,3.01651,3315.1,3313.9,3.01752]
[1734961305212,3.01651,3315.1,3314.0,3.01741]
[1734961305360,3.01651,3315.1,3314.1,3.3927]
[1734961305704,3.01668,3314.9,3314.1,0.3753]
[1734961306069,3.80778,3316.3,3314.3,0.3753]
[1734961306379,3.0156,3316.1,3315.1,3.01647]
[1734961306593,0.7888,3316.8,3315.5,0.3753]
[1734961306792,3.01568,3316.0,3315.5,0.3753]
[1734961307011,3.01513,3316.6,3315.5,0.3753]
[1734961307206,3.01604,3315.6,3315.5,0.3753]
[1734961307577,3.01504,3316.7,3315.5,0.3753]
[1734961307578,3.0159,3315.8,3315.5,0.3753]
[1734961307970,3.0157,3316.0,3315.5,0.3753]
[1734961308307,0.30157,3316.0,3315.5,0.3753]
[1734961308507,3.01587,3315.8,3315.5,0.3753]
[1734961308712,3.0,3316.6,3315.5,0.3753]
[1734961309209,3.0154,3316.4,3315.5,0.3753]
[1734961309506,3.01604,3315.6,3315.5,0.3753]
[1734961309867,3.0,3316.6,3315.5,0.3753]
[1734961310072,3.01595,3315.8,3315.5,0.3753]
[1734961310408,3.01531,3316.4,3315.5,0.3753]
[1734961310716,3.01557,3316.2,3315.6,0.02868741]
[1734961310895,3.01557,3316.2,3315.5,0.3753]
[1734961311078,3.01557,3316.2,3315.7,0.02866701]
[1734961311278,3.01613,3315.6,3314.4,0.71584664]
[1734961311507,3.01586,3315.8,3314.4,0.3753]
[1734961311679,3.0165,3315.1,3314.4,0.3753]
[1734961312879,3.01586,3315.8,3314.4,0.3753]
[1734961313265,1.083357,3316.1,3314.4,0.3753]
[1734961313266,3.01649,3315.2,3314.4,0.3753]
[1734961313470,3.01653,3315.1,3314.4,0.3753]
[1734961314090,3.01697,3314.6,3314.4,0.3753]
[1734961314477,3.0175,3314.0,3313.9,0.3753]
[1734961314676,0.7501,3314.4,3313.3,0.3753]
[1734961314883,0.7501,3315.1,3313.3,0.3753]
[1734961315183,3.01658,3315.1,3313.9,3.01758]
[1734961315412,3.318258,3315.0,3314.0,0.3753]
[1734961315617,3.01673,3314.9,3314.0,0.3753]
[1734961315999,3.01678,3314.8,3314.0,0.3753]
[1734961316507,0.301658,3315.0,3314.0,0.3753]
[1734961316932,3.01716,3314.4,3314.0,0.3753]
[1734961317079,3.01716,3314.4,3314.1,0.03677547]
[1734961317275,3.01716,3314.4,3314.0,0.3753]
[1734961317516,3.01631,3315.3,3314.1,0.03677547]
[1734961317720,3.01731,3314.2,3314.0,0.3753]
[1734961318227,3.301631,3315.2,3314.0,0.3753]
[1734961318519,3.01697,3314.6,3314.0,0.3753]
[1734961318681,3.01697,3314.6,3314.1,0.02952424]
[1734961319086,0.301631,3315.2,3314.1,0.02952424]
[1734961319394,3.01712,3314.5,3314.0,0.3753]
[1734961319725,3.0,3315.1,3314.1,0.02952424]
[1734961319929,0.82,3314.5,3313.4,0.3753]
[1734961320078,3.01814,3313.3,3312.3,0.3753]
[1734961320386,0.82,3314.5,3313.5,0.02779604]
[1734961320577,3.01721,3314.4,3313.2,0.3753]
[1734961320815,3.01721,3314.4,3313.4,0.3753]
[1734961321127,0.60164,3315.0,3313.5,0.37051694]
[1734961321326,3.01668,3314.9,3313.4,0.3753]
[1734961321481,3.01668,3314.9,3313.6,0.03375489]
[1734961321482,4.86212607,3314.9,3313.6,0.03375489]
[1734961321687,4.86212607,3314.9,3313.4,0.3753]
[1734961321688,3.0174,3314.2,3313.4,0.3753]
[1734961321915,3.01715,3314.4,3313.7,0.03127754]
[1734961322186,3.01716,3314.4,3313.2,3.39347]
[1734961322395,1.84544607,3314.9,3313.3,0.339347]
[1734961322396,3.01761,3313.9,3313.3,0.339347]
[1734961322688,3.01804,3313.4,3313.3,0.03398617]
[1734961322903,3.01813,3313.3,3312.8,0.3753]
[1734961323516,3.01813,3313.4,3312.8,0.3753]
[1734961323937,3.01796,3313.5,3312.8,0.3753]
[1734961324101,0.8252,3314.1,3312.8,0.3753]
[1734961324290,3.01787,3313.6,3312.8,0.3753]
[1734961324686,0.8252,3314.1,3312.8,0.3753]
[1734961324917,3.01782,3313.7,3312.8,0.3753]
[1734961325137,0.38252,3314.0,3312.8,0.3753]
[1734961325488,3.01823,3313.2,3312.8,0.3753]
[1734961325685,0.38252,3314.0,3312.8,0.3753]
[1734961326008,3.01798,3313.5,3312.8,0.3753]
[1734961326186,3.01765,3313.9,3312.8,0.3753]
[1734961326187,3.01807,3313.4,3312.8,0.3753]
[1734961326542,3.01822,3313.3,3312.8,0.3753]
[1734961326684,0.7805,3314.1,3312.8,0.3753]
[1734961326885,3.01862,3312.8,3311.7,0.3753]
[1734961327084,3.0,3313.8,3311.9,3.39466]
[1734961327085,3.01777,3313.7,3311.9,3.39466]
[1734961327290,3.01845,3313.0,3311.9,3.39466]
[1734961327619,3.01777,3313.7,3311.9,0.3753]
[1734961327835,3.82716,3313.6,3311.9,0.3753]
[1734961328036,3.01923,3312.2,3311.9,0.3753]
[1734961328536,3.0,3312.5,3310.9,0.3753]
[1734961328896,3.01887,3312.5,3311.8,0.3753]
[1734961329128,0.7893,3312.8,3311.8,0.3753]
[1734961329129,3.019,3312.4,3311.8,0.3753]
[1734961329291,3.019,3312.4,3311.9,0.02924187]
[1734961329495,0.3019,3312.3,3311.1,0.3753]
[1734961329709,0.7893,3312.8,3311.1,0.3753]
[1734961329944,3.019,3312.4,3311.3,3.01995]
[1734961330091,0.7893,3312.8,3311.3,3.01995]
[1734961330437,0.7893,3312.8,3311.4,0.02976923]
[1734961330741,0.7893,3312.8,3310.7,3.0]
[1734961330742,3.0,3313.1,3311.5,0.3753]
[1734961330922,3.01852,3312.9,3311.7,3.01951]
[1734961331091,3.01885,3312.6,3311.5,3.42474731]
[1734961331437,3.01885,3312.6,3311.8,0.02968156]
[1734961331637,3.01885,3312.6,3311.6,0.02972539]
[1734961331846,0.7555,3312.9,3311.9,0.02965964]
[1734961332142,3.01889,3312.5,3311.1,0.3753]
[1734961332435,3.01889,3312.5,3312.0,0.02963773]
[1734961332641,3.01867,3312.8,3311.2,0.3753]
[1734961332846,3.01916,3312.2,3311.3,0.3753]
[1734961333145,3.01887,3312.5,3311.3,0.40509115]
[1734961333432,3.0,3312.2,3311.3,0.3753]
[1734961333588,3.01905,3312.3,3311.3,0.3753]
[1734961333789,3.99403854,3313.5,3311.4,0.02978249]
[1734961333790,3.01889,3312.5,3311.4,0.02978249]
[1734961334087,0.8269,3312.8,3311.3,3.39525]
[1734961334088,3.01897,3312.4,3311.3,3.39525]
[1734961334297,3.01888,3312.5,3311.4,3.04957249]
[1734961334622,3.01888,3312.5,3311.5,3.01976]
[1734961335137,3.01888,3312.5,3311.6,0.02973865]
[1734961335335,3.01869,3312.7,3311.6,3.04933865]
[1734961335569,3.01869,3312.7,3311.6,3.35427252]
[1734961335755,0.7517,3313.2,3311.7,0.3753]
[1734961335926,3.01849,3313.0,3311.7,0.40489072]
[1734961336122,3.01849,3313.0,3312.0,3.01928]
[1734961336331,3.01786,3313.6,3312.2,0.3753]
[1734961336635,0.7517,3313.7,3312.4,0.3753]
[1734961336957,3.01795,3313.5,3312.5,0.03136395]
[1734961337125,3.01795,3313.5,3312.5,3.01885]
[1734961337320,3.01795,3313.5,3311.9,2.86102271]
[1734961337321,3.76906,3314.2,3312.7,3.01865]
[1734961337574,3.76906,3314.2,3312.6,0.40925205]
[1734961337575,3.01767,3313.9,3312.8,3.01856]
[1734961337873,0.376906,3314.1,3312.8,0.03390095]
[1734961338079,3.01795,3313.6,3312.8,0.03390095]
[1734961338359,3.01795,3313.6,3312.6,0.3753]
[1734961338567,0.376906,3314.1,3312.9,0.03387539]
[1734961338722,0.376906,3314.1,3312.6,0.3753]
[1734961338723,3.01789,3313.6,3312.6,0.3753]
[1734961338924,3.319679,3313.6,3313.0,0.03384984]
[1734961339154,0.301789,3313.6,3312.6,3.39406]
[1734961339364,3.01787,3313.6,3313.1,0.0338243]
[1734961339565,1.208066,3313.8,3312.6,0.3753]
[1734961339774,3.01822,3313.3,3313.2,0.03379875]
[1734961339926,1.208066,3313.8,3312.6,0.3753]
[1734961340125,1.208066,3313.8,3313.2,0.03369821]
[1734961340369,4.225806,3313.8,3312.7,3.01866]
[1734961340537,1.208066,3313.8,3313.3,0.03367266]
[1734961340743,3.01805,3313.4,3312.6,0.3753]
[1734961340946,3.01789,3313.6,3313.4,0.03364712]
[1734961341158,3.01789,3313.6,3312.6,0.3753]
[1734961341368,3.01789,3313.6,3313.5,0.03362157]
[1734961341697,0.301789,3313.6,3312.6,0.3753]
[1734961341872,0.376906,3314.1,3313.1,3.01823]
[1734961342054,4.70646878,3315.1,3313.5,0.03362157]
[1734961342257,4.70646878,3315.1,3312.3,2.86102271]
[1734961342258,1.207913,3314.3,3313.8,3.01766]
[1734961342576,0.7947,3315.0,3313.9,0.03968503]
[1734961342782,0.7947,3315.0,3313.6,0.3753]
[1734961342783,3.0177,3313.8,3313.2,0.3753]
[1734961343076,3.0177,3313.8,3312.4,0.3753]
[1734961343077,1.09647,3313.8,3312.4,0.3753]
[1734961343231,3.01814,3313.3,3312.4,0.3753]
[1734961345051,3.01823,3313.2,3312.4,0.3753]
[1734961345481,3.01777,3313.7,3312.4,0.3753]
[1734961345663,3.01814,3313.3,3312.4,0.3753]
[1734961345985,0.7947,3313.8,3312.4,0.3753]
[1734961345986,3.01794,3313.6,3312.5,3.01885]
[1734961346164,3.399204,3313.6,3312.5,3.01885]
[1734961346335,3.01803,3313.5,3312.5,3.01885]
[1734961346533,3.01807,3313.4,3312.4,0.3753]
[1734961347098,0.381264,3313.6,3312.4,0.3753]
[1734961347249,3.0,3313.0,3310.7,2.86102271]
[1734961347580,3.01951,3311.8,3310.8,0.66140227]
[1734961347731,3.01935,3312.0,3310.8,0.66140227]
[1734961347932,0.83,3312.3,3310.8,0.66140227]
[1734961348131,3.01955,3311.8,3310.8,0.66140227]
[1734961348370,3.01955,3311.8,3310.9,0.03019999]
[1734961348666,0.83,3312.3,3310.9,0.7305625]
[1734961348876,3.01959,3311.7,3310.9,0.7305625]
[1734961349426,3.01965,3311.7,3310.2,0.3753]
[1734961349734,3.01932,3312.0,3310.3,0.3753]
[1734961349977,0.8246,3311.8,3310.4,3.02076]
[1734961350179,0.8246,3312.4,3310.6,0.3753]
[1734961350342,3.01949,3311.9,3310.6,0.3753]
[1734961350546,3.01974,3311.6,3310.6,0.3753]
[1734961350875,3.01974,3311.6,3310.6,3.39587]
[1734961351080,3.01953,3311.8,3310.6,3.39587]
[1734961351253,3.38246,3312.3,3310.6,0.3753]
[1734961351434,3.01927,3312.1,3310.6,0.3753]
[1734961351630,0.70680827,3312.2,3310.6,0.3753]
[1734961351836,3.02005,3311.3,3310.6,0.3753]
[1734961352159,0.8229,3312.1,3310.6,0.3753]
[1734961352351,3.01968,3311.6,3310.6,0.3753]
[1734961352681,3.01977,3311.5,3310.6,0.3753]
[1734961352831,3.01987,3311.5,3310.6,0.3753]
[1734961353031,0.8229,3312.1,3310.6,0.3753]
[1734961353235,3.0193,3312.1,3311.0,3.39545]
[1734961353437,3.0193,3312.1,3311.0,0.3753]
[1734961353748,3.01905,3312.3,3311.1,3.02013]
[1734961353951,0.7711,3312.5,3311.2,0.339543]
[1734961354570,3.01923,3312.1,3311.2,0.339543]
[1734961354783,3.01905,3312.3,3311.1,3.02014]
[1734961355093,3.01895,3312.4,3311.3,0.03993842]
[1734961355278,3.01909,3312.3,3311.2,0.03996911]
[1734961355586,3.01917,3312.2,3311.3,0.04437602]
[1734961355886,3.01895,3312.5,3311.4,0.3753]
[1734961356089,3.01906,3312.3,3311.4,0.41964192]
[1734961357294,3.0,3312.7,3311.4,0.41964192]
[1734961357476,3.01905,3312.3,3311.4,0.3753]
[1734961357677,4.43587461,3312.9,3311.4,0.3753]
[1734961357881,3.01908,3312.3,3311.4,0.3753]
[1734961358190,3.01866,3312.8,3311.4,0.3753]
[1734961358401,0.8056,3313.2,3311.8,3.01946]
[1734961358563,3.01847,3313.0,3311.9,0.40548987]
[1734961358764,0.301808,3313.3,3311.9,0.40548987]
[1734961358973,0.301808,3313.3,3311.9,0.3753]
[1734961359300,3.01916,3312.2,3311.9,0.3753]
[1734961359470,3.01841,3313.0,3311.9,0.3753]
[1734961359664,3.01859,3312.8,3311.0,0.3753]
[1734961359867,3.01889,3312.5,3311.4,0.3753]
[1734961360165,3.01858,3312.9,3311.7,3.01952]
[1734961360379,3.01862,3312.8,3311.9,0.3753]
[1734961360698,0.7867,3313.1,3311.9,0.3753]
[1734961360878,3.01841,3313.0,3311.9,0.3753]
[1734961361081,3.01877,3312.6,3311.9,0.3753]
[1734961361580,3.01841,3313.0,3311.9,0.3753]
[1734961361758,0.380511,3312.9,3311.9,0.3753]
[1734961361956,3.01863,3312.8,3311.9,0.3753]
[1734961362292,3.01888,3312.5,3311.9,0.3753]
[1734961362590,0.60862781,3313.4,3311.9,0.3753]
[1734961362591,3.808,3313.5,3311.9,0.3753]
[1734961362793,3.01855,3312.9,3311.9,0.3753]
[1734961363182,0.66690227,3313.4,3311.9,0.3753]
[1734961363510,3.01858,3312.9,3311.9,0.3753]
[1734961363991,3.01858,3312.9,3311.9,3.3947]
[1734961364700,3.01825,3313.2,3312.1,3.01922]
[1734961365008,0.66690227,3313.4,3312.2,0.40548788]
[1734961365199,3.01816,3313.3,3312.3,3.01901]
[1734961365524,3.01842,3313.0,3312.2,0.3753]
[1734961366214,3.01821,3313.3,3312.4,0.3753]
[1734961366371,3.01821,3313.3,3312.4,3.39425]
[1734961366572,3.82469,3313.9,3312.5,3.01877]
[1734961366838,3.01848,3313.0,3311.8,0.3753]
[1734961367004,3.01818,3313.3,3312.2,3.01912]
[1734961367203,3.01818,3313.3,3312.3,3.39434]
[1734961367543,0.66857127,3313.8,3312.3,0.3753]
[1734961367698,3.01846,3313.0,3312.3,0.3753]
[1734961367903,3.01858,3312.9,3312.3,0.3753]
[1734961368397,0.66857127,3313.8,3312.3,0.3753]
[1734961368595,0.66857127,3313.8,3312.0,3.01928]
[1734961368842,3.01792,3313.6,3312.6,3.01877]
[1734961369015,3.01796,3313.5,3312.7,0.3753]
[1734961369803,0.66857127,3313.8,3312.7,0.3753]
[1734961370000,3.01803,3313.5,3312.7,0.3753]
[1734961370415,4.435065,3314.2,3312.7,0.3753]
[1734961370750,3.01798,3313.5,3312.7,0.3753]
[1734961371639,3.01765,3313.9,3312.7,0.3753]
[1734961371800,3.01833,3313.1,3312.7,0.3753]
[1734961372198,3.01806,3313.4,3312.7,0.3753]
[1734961372611,3.01774,3313.8,3312.7,0.3753]
[1734961372817,3.319604,3313.7,3312.7,0.3753]
[1734961373060,3.01859,3312.8,3312.7,0.3753]
[1734961373206,3.01813,3313.4,3311.6,3.39498]
[1734961373404,3.01871,3312.7,3311.7,0.3753]
[1734961374154,3.0,3313.5,3311.7,0.3753]
[1734961374357,3.01867,3312.8,3311.7,3.39485]
[1734961374567,3.01813,3313.3,3311.7,0.3753]
[1734961374715,0.8111,3312.9,3311.9,0.3753]
[1734961375061,3.01902,3312.4,3311.9,0.3753]
[1734961375418,3.01877,3312.7,3311.9,0.3753]
[1734961375834,3.01882,3312.6,3311.9,0.3753]
[1734961376236,1.69898827,3313.4,3311.9,0.3753]
[1734961376461,0.46989883,3313.3,3311.9,0.3753]
[1734961376634,3.0185,3313.0,3311.9,3.3947]
[1734961377159,3.01827,3313.2,3311.9,3.3947]
[1734961377362,3.01852,3312.9,3311.9,3.3947]
[1734961377566,3.0189,3312.5,3311.9,0.3753]
[1734961377869,0.30189,3312.4,3311.9,0.3753]
[1734961378165,3.01886,3312.6,3311.9,0.3753]